bitfinex/quotes_ETHUSD_20240614
["timestamp","ask_amount","ask_price","bid_price","bid_amount"]
[1718407411715,2.8721,3481.8,3481.5,2.87228]
[1718407411902,2.8721,3481.8,3481.5,4.126803]
[1718407412519,2.87174,3482.3,3482.1,2.87183]
[1718407412520,1.37924362,3482.3,3482.1,2.87183]
[1718407412730,5.87114,3483.0,3482.1,2.87176]
[1718407412731,1.37924362,3482.4,3482.1,2.87176]
[1718407412929,4.25074362,3482.5,3482.1,2.87176]
[1718407413830,2.8715,3482.5,3482.2,2.87166]
[1718407415332,4.25066362,3482.6,3482.1,2.87181]
[1718407415508,2.87142,3482.6,3482.1,0.574379]
[1718407415713,2.87151,3482.5,3482.1,2.87176]
[1718407415919,2.87151,3482.5,3482.2,2.87171]
[1718407416649,2.87141,3482.6,3482.3,2.87163]
[1718407417000,4.25065362,3482.6,3482.3,2.87163]
[1718407417210,4.25040733,3482.6,3482.3,2.87163]
[1718407417752,1.37899733,3482.7,3482.4,2.87157]
[1718407417957,1.37899733,3482.6,3482.4,2.87157]
[1718407418247,1.37899733,3482.7,3482.5,2.87146]
[1718407418545,2.87125,3482.8,3482.5,3.5262864]
[1718407418745,1.37899733,3482.9,3482.6,2.8714]
[1718407418746,4.25017733,3482.9,3482.6,2.8714]
[1718407418920,2.87118,3482.9,3482.6,2.8714]
[1718407419646,2.87108,3483.0,3482.6,3.59170304]
[1718407419851,2.87108,3483.0,3482.2,2.8717]
[1718407419852,2.87155,3482.5,3482.0,2.87189]
[1718407420148,2.87166,3482.3,3482.0,2.87189]
[1718407420343,2.87166,3482.3,3482.2,0.805288]
[1718407421047,2.87166,3482.3,3481.7,2.87213]
[1718407421048,2.96071851,3482.3,3481.7,2.87213]
[1718407421545,2.87197,3482.0,3481.7,2.87213]
[1718407422115,0.08910171,3481.9,3481.7,2.87213]
[1718407422355,0.08910171,3481.9,3481.8,2.87207]
[1718407422653,0.08910171,3481.9,3481.8,4.12653]
[1718407422955,0.08910171,3481.9,3481.8,1.25446]
[1718407423252,0.08910171,3481.9,3481.7,2.87214]
[1718407424628,0.08910171,3481.9,3481.8,2.87207]
[1718407425246,2.87176,3482.2,3481.9,2.87199]
[1718407426428,2.87184,3482.1,3481.9,2.87199]
[1718407426752,2.87176,3482.2,3481.9,3.839193]
[1718407426951,2.87176,3482.2,3481.9,0.967213]
[1718407428236,2.87169,3482.3,3481.7,2.87214]
[1718407428551,2.87193,3482.0,3481.8,2.87204]
[1718407429348,2.87193,3482.0,3481.7,2.87213]
[1718407429550,2.87193,3482.0,3481.7,3.839388]
[1718407430358,2.87249,3481.3,3481.2,2.309]
[1718407431220,2.87239,3481.5,3481.2,2.309]
[1718407431419,2.87241,3481.4,3481.2,3.401705]
[1718407431849,2.87249,3481.3,3481.2,1.092705]
[1718407432063,2.87249,3481.3,3481.0,2.87272]
[1718407432262,2.87249,3481.3,3480.9,2.87281]
[1718407432263,2.87249,3481.3,3481.1,2.87264]
[1718407432759,2.87233,3481.5,3481.2,2.87257]
[1718407432938,2.87233,3481.5,3481.2,3.734372]
[1718407433145,2.87233,3481.5,3481.2,0.861802]
[1718407434155,2.87233,3481.5,3481.2,3.734332]
[1718407434659,1.87569735,3481.8,3481.4,2.87236]
[1718407434660,2.87208,3481.8,3481.4,2.87236]
[1718407434951,2.87208,3481.8,3481.4,3.5330402]
[1718407435339,0.08818877,3481.7,3481.4,3.5330402]
[1718407435544,0.08818877,3481.7,3481.5,2.87231]
[1718407435742,2.87208,3481.8,3481.5,2.87231]
[1718407435939,0.08818877,3481.6,3481.5,2.87231]
[1718407436135,2.87208,3481.8,3481.5,2.87231]
[1718407436451,0.08818877,3481.6,3481.5,2.87231]
[1718407436624,2.87216,3481.7,3481.5,2.87231]
[1718407436951,0.08818877,3481.6,3481.5,2.87231]
[1718407438632,0.08818877,3481.6,3481.5,6.319103]
[1718407439047,2.87185,3482.1,3481.8,2.87206]
[1718407439459,4.57582374,3482.3,3482.0,2.87191]
[1718407439753,4.07932051,3482.3,3482.0,2.87191]
[1718407440526,1.20763051,3482.4,3482.1,2.87181]
[1718407440740,2.87523581,3482.5,3482.1,2.87181]
[1718407440741,1.20763051,3482.5,3482.2,2.87174]
[1718407441861,4.07915051,3482.5,3482.2,2.87174]
[1718407442726,2.87152,3482.5,3482.2,2.87174]
[1718407443264,1.20763051,3482.5,3482.2,3.72850222]
[1718407443426,2.87135,3482.7,3482.2,0.85676222]
[1718407443628,2.87135,3482.7,3481.9,0.37488223]
[1718407443629,2.87165,3482.4,3481.9,0.37488223]
[1718407443824,2.87165,3482.4,3481.8,2.87205]
[1718407443825,2.87166,3482.3,3482.0,2.8719]
[1718407446064,2.87199,3481.9,3481.7,6.94025]
[1718407446239,2.87169,3482.3,3481.8,2.87206]
[1718407446240,2.87185,3482.1,3481.8,2.87206]
[1718407446748,2.87191,3482.0,3481.7,0.694025]
[1718407446961,2.87206,3481.9,3481.5,2.87224]
[1718407447158,2.87184,3482.1,3481.8,2.87207]
[1718407448676,4.07931051,3482.3,3482.0,2.87184]
[1718407448961,2.87168,3482.3,3482.1,0.819293]
[1718407449160,1.20763051,3482.4,3482.3,0.144]
[1718407449161,4.07922051,3482.4,3482.3,0.144]
[1718407449365,4.05122051,3482.4,3482.3,0.144]
[1718407450269,4.13744175,3482.4,3482.3,0.144]
[1718407450744,4.13743175,3482.4,3482.3,0.144]
[1718407450939,2.95780124,3482.4,3482.3,0.144]
[1718407452525,0.08622124,3482.4,3482.3,3.604423]
[1718407452727,5.75417156,3482.8,3482.4,2.87151]
[1718407452963,0.08624051,3482.7,3482.4,2.87151]
[1718407453164,2.87129,3482.8,3482.4,2.87151]
[1718407453470,0.08624051,3482.6,3482.4,2.87151]
[1718407453634,2.87129,3482.8,3482.4,2.87151]
[1718407453839,0.08624051,3482.5,3482.4,2.87151]
[1718407454033,5.75406156,3482.9,3482.6,2.87141]
[1718407454349,2.87126,3482.8,3482.5,2.87148]
[1718407456563,4.37511195,3482.8,3482.4,2.87156]
[1718407456967,2.87133,3482.7,3482.4,2.87156]
[1718407457349,4.07457099,3482.7,3482.4,2.87156]
[1718407458246,2.87151,3482.5,3482.3,0.144]
[1718407458556,4.07482099,3482.4,3482.3,0.144]
[1718407458870,8.61474,3482.4,3482.3,0.144]
[1718407459059,11.97670817,3482.4,3482.3,0.144]
[1718407459438,11.97696976,3482.4,3482.3,0.144]
[1718407459844,10.59778612,3482.4,3482.3,0.144]
[1718407460044,12.10204083,3482.4,3482.3,0.144]
[1718407460270,11.97696976,3482.4,3482.3,0.144]
[1718407461169,10.59778612,3482.4,3482.3,0.144]
[1718407461675,16.57331686,3482.4,3482.3,0.144]
[1718407462577,23.749922,3482.4,3482.3,0.144]
[1718407462878,23.24529966,3482.4,3482.3,0.144]
[1718407463271,25.35069239,3482.4,3482.3,0.144]
[1718407463568,23.24529966,3482.4,3482.3,0.144]
[1718407465065,28.63917389,3482.4,3482.3,0.144]
[1718407465462,28.43726413,3482.4,3482.3,0.144]
[1718407465867,28.43755502,3482.4,3482.3,0.144]
[1718407467871,28.72555502,3482.4,3482.3,0.144]
[1718407468963,28.43755502,3482.4,3482.3,0.144]
[1718407469165,16.09665502,3482.4,3480.5,2.4817]
[1718407469473,16.09665502,3482.4,3479.5,3.77269478]
[1718407469474,2.87318,3480.5,3480.2,5.35509]
[1718407469859,5.83238514,3480.4,3480.2,2.4817]
[1718407470175,2.95908514,3480.4,3480.2,2.4817]
[1718407470507,2.95908514,3480.4,3480.0,3.18905828]
[1718407470508,0.08585514,3480.4,3480.3,2.87331]
[1718407470655,0.08585514,3480.4,3480.3,5.67389183]
[1718407470980,2.87294,3480.8,3480.4,2.8732]
[1718407471476,2.95883127,3480.7,3480.4,2.8732]
[1718407471679,5.83189127,3480.7,3480.4,2.8732]
[1718407471880,2.87308,3480.6,3480.4,2.8732]
[1718407472584,2.87308,3480.6,3480.4,3.72791718]
[1718407472585,0.08585127,3480.5,3480.4,3.72791718]
[1718407473189,0.08585127,3480.5,3480.4,11.81687718]
[1718407473682,2.87225,3481.6,3481.1,5.21513]
[1718407473864,2.87241,3481.4,3481.1,5.21513]
[1718407474580,0.08543875,3481.3,3481.1,5.21513]
[1718407474785,0.08543875,3481.3,3481.1,6.311212]
[1718407475452,2.95792875,3481.3,3481.1,6.311212]
[1718407475648,2.95792875,3481.3,3481.1,3.438582]
[1718407475649,2.87257,3481.2,3481.1,3.438582]
[1718407475959,2.87257,3481.2,3481.1,2.3425]
[1718407476163,2.95800875,3481.2,3481.1,2.3425]
[1718407476398,0.08543875,3481.2,3481.1,2.3425]
[1718407477189,2.87251,3481.3,3481.1,2.3425]
[1718407477392,0.08543875,3481.2,3481.1,2.3425]
[1718407477765,2.87251,3481.3,3481.1,2.3425]
[1718407478060,0.08543875,3481.2,3481.1,2.3425]
[1718407478263,2.95800875,3481.2,3481.1,2.3425]
[1718407478460,2.87257,3481.2,3481.1,2.3425]
[1718407478666,2.95800875,3481.2,3481.1,2.3425]
[1718407479724,2.95800875,3481.2,3480.9,2.87279]
[1718407479725,5.74576,3480.9,3480.8,2.3425]
[1718407479918,2.87304,3480.7,3480.5,2.3425]
[1718407480079,2.87306,3480.6,3480.5,2.3425]
[1718407480519,2.95879948,3480.6,3480.5,2.3425]
[1718407485922,2.87323,3480.4,3480.3,0.31888183]
[1718407486127,2.87323,3480.4,3480.2,5.21589]
[1718407486327,2.95884225,3480.4,3480.2,5.21589]
[1718407488597,2.95884225,3480.4,3480.2,2.3425]
[1718407489453,2.87331,3480.3,3480.2,2.3425]
[1718407489618,2.87331,3480.3,3480.1,2.87347]
[1718407490120,0.08551971,3480.2,3480.1,2.87347]
[1718407490326,2.87325,3480.4,3480.1,2.87347]
[1718407490536,0.08551971,3480.3,3480.1,2.87347]
[1718407490901,0.08551971,3480.3,3480.2,0.674]
[1718407491445,0.08551971,3480.3,3480.2,3.54739]
[1718407492018,0.08551971,3480.3,3480.0,2.87356]
[1718407492019,2.95882971,3480.3,3480.0,2.87356]
[1718407492244,2.95882971,3480.3,3480.1,0.674]
[1718407493327,2.87339,3480.2,3479.9,2.3425]
[1718407493525,0.08550815,3480.1,3479.9,5.89013]
[1718407494102,0.08550815,3480.1,3479.9,2.3425]
[1718407494306,2.87356,3480.0,3479.6,5.34497]
[1718407494508,2.87356,3480.0,3479.6,3.1451]
[1718407494749,2.87373,3479.8,3479.6,3.1451]
[1718407495145,2.87373,3479.8,3479.6,6.01897]
[1718407495325,0.08520736,3479.7,3479.6,6.01897]
[1718407495525,2.87373,3479.8,3479.6,6.01897]
[1718407495526,1.37984129,3480.5,3479.6,9.782172]
[1718407495724,2.87319,3480.5,3480.2,3.1451]
[1718407495926,0.08520736,3480.4,3480.2,3.1451]
[1718407496144,2.95845736,3480.4,3480.2,6.01848]
[1718407498057,2.95845736,3480.4,3480.3,5.74662]
[1718407498058,0.08520736,3480.4,3480.3,5.74662]
[1718407498349,0.08520736,3480.4,3480.3,6.923126]
[1718407498580,2.87283,3480.9,3480.6,2.87303]
[1718407498981,0.08511482,3480.8,3480.6,2.87303]
[1718407502396,0.08511482,3480.8,3480.7,5.74596]
[1718407502890,2.87272,3481.1,3480.8,2.87288]
[1718407505297,4.57196057,3481.3,3480.9,2.87281]
[1718407505510,4.07531535,3481.3,3480.9,2.87281]
[1718407505803,2.87257,3481.2,3480.9,2.87281]
[1718407506602,2.87225,3481.6,3480.9,2.87281]
[1718407506603,1.20281535,3481.6,3481.3,2.87249]
[1718407506783,4.07482535,3481.9,3481.6,2.87224]
[1718407506962,4.57130033,3482.0,3481.4,2.4711]
[1718407507166,2.87193,3482.0,3481.7,2.8721]
[1718407507366,2.87193,3482.0,3481.8,2.87207]
[1718407507602,4.07474535,3482.0,3481.8,2.87207]
[1718407507765,4.07474535,3482.0,3481.7,2.87213]
[1718407507766,2.87193,3482.0,3481.7,2.87213]
[1718407508098,4.57118095,3482.1,3481.8,2.87207]
[1718407508280,4.07465535,3482.1,3481.8,2.87207]
[1718407508993,2.87184,3482.1,3481.8,2.87207]
[1718407509499,2.87192,3482.0,3481.6,2.87221]
[1718407509717,2.87213,3481.8,3481.4,5.34344]
[1718407509864,2.87213,3481.8,3481.3,2.87247]
[1718407510201,2.87224,3481.6,3481.3,2.87247]
[1718407510568,0.08547339,3481.5,3481.3,2.87247]
[1718407511306,2.8725,3481.3,3480.6,2.4711]
[1718407511602,2.87267,3481.1,3480.6,5.34415]
[1718407512306,0.08540402,3481.0,3480.6,5.34415]
[1718407512712,2.95814402,3481.0,3480.7,2.87296]
[1718407513998,0.08540402,3481.0,3480.8,2.87288]
[1718407514520,2.87247,3481.4,3481.1,2.87264]
[1718407516096,2.87211,3481.8,3481.3,2.2849]
[1718407516296,7.31,3482.4,3481.5,2.87231]
[1718407516297,2.87175,3482.2,3481.5,2.87231]
[1718407516842,2.87168,3482.3,3481.8,2.87206]
[1718407517046,2.87168,3482.3,3481.9,2.87191]
[1718407517252,4.176998,3482.3,3481.9,2.87191]
[1718407518509,4.176998,3482.3,3481.8,2.87206]
[1718407518510,2.8719,3482.1,3481.8,2.87205]
[1718407519343,2.87176,3482.2,3481.9,2.87199]
[1718407521411,7.31,3482.4,3482.3,5.74332]
[1718407521607,7.31,3483.0,3482.7,2.87129]
[1718407521837,10.18111,3483.0,3482.5,2.87143]
[1718407523145,10.18111,3483.0,3482.7,2.87132]
[1718407525116,2.87111,3483.0,3482.7,2.87132]
[1718407525316,0.08611724,3482.9,3482.7,2.87132]
[1718407526359,2.95728724,3482.9,3482.7,2.87132]
[1718407526773,0.08611724,3482.9,3482.7,2.87132]
[1718407526938,0.08611724,3482.9,3482.8,5.36935]
[1718407527324,2.87108,3483.1,3482.8,5.36935]
[1718407527520,2.87092,3483.2,3482.8,5.36935]
[1718407527521,0.08642934,3482.9,3482.8,5.36935]
[1718407527723,2.87108,3483.0,3482.8,5.36935]
[1718407528036,0.08642934,3482.9,3482.8,5.36935]
[1718407529484,0.08642934,3482.9,3482.8,2.87125]
[1718407530153,0.08642934,3482.9,3482.7,2.87132]
[1718407533746,0.08642934,3482.9,3482.8,2.87125]
[1718407541394,1.19947823,3484.0,3483.1,2.3122]
[1718407541547,2.0930495,3484.8,3483.2,2.87085]
[1718407541548,4.24867289,3484.6,3483.2,2.87085]
[1718407541748,1.37884289,3484.5,3483.5,2.87064]
[1718407541986,2.87045,3483.8,3483.5,2.87064]
[1718407543880,2.87035,3483.9,3483.5,2.87064]
[1718407543881,2.87053,3483.7,3483.5,2.87064]
[1718407544076,2.87053,3483.7,3483.4,2.87073]
[1718407549106,0.08176224,3483.6,3483.4,2.87073]
[1718407549269,0.08176224,3483.6,3483.5,2.87067]
[1718407549690,2.87043,3483.8,3483.5,2.87067]
[1718407549888,0.08174298,3483.6,3483.5,2.87067]
[1718407550092,2.87043,3483.8,3483.5,2.87067]
[1718407550301,0.08176223,3483.6,3483.5,2.87067]
[1718407550474,2.87043,3483.8,3483.5,2.87067]
[1718407550675,0.08176223,3483.6,3483.5,2.87067]
[1718407550907,2.87043,3483.8,3483.5,2.87067]
[1718407551096,0.08176223,3483.6,3483.5,2.87067]
[1718407551293,2.87043,3483.8,3483.6,2.87058]
[1718407553371,2.87036,3483.9,3483.6,2.87058]
[1718407553571,2.87046,3483.8,3483.6,0.574131]
[1718407554013,7.31,3484.6,3483.7,5.50624514]
[1718407554216,7.31,3484.6,3484.5,8.60955]
[1718407554382,2.86929,3485.2,3484.8,2.86958]
[1718407554708,10.1792,3485.3,3484.9,2.86951]
[1718407554936,2.8692,3485.3,3484.9,2.86951]
[1718407555277,0.07099468,3485.2,3484.9,2.86951]
[1718407555490,0.07099468,3485.2,3485.0,2.86941]
[1718407555709,2.8692,3485.3,3485.0,2.86941]
[1718407555897,0.07099468,3485.1,3484.9,2.86951]
[1718407556111,2.86928,3485.2,3485.0,2.86944]
[1718407556416,0.1201691,3486.2,3485.1,2.4558]
[1718407556619,0.1201691,3486.2,3486.1,2.86853]
[1718407557420,0.1201691,3486.2,3486.1,5.73706]
[1718407558517,0.1201691,3486.2,3485.2,2.86926]
[1718407558518,2.86855,3486.1,3485.8,2.86876]
[1718407559138,0.1201691,3486.2,3485.9,2.86868]
[1718407559335,0.1201691,3486.2,3486.1,2.86853]
[1718407561136,0.1201691,3486.2,3485.3,2.86918]
[1718407561137,2.86894,3485.6,3485.3,2.86918]
[1718407561432,2.86894,3485.6,3484.5,2.261]
[1718407561433,0.286894,3485.6,3484.5,2.261]
[1718407561636,2.86926,3485.3,3484.9,2.86944]
[1718407561832,2.86926,3485.3,3484.8,2.86957]
[1718407561833,2.86919,3485.3,3484.8,2.86957]
[1718407562357,3.41861,3486.1,3484.4,2.8699]
[1718407562358,0.75,3485.9,3485.3,2.261]
[1718407562536,2.86885,3485.8,3484.9,2.261]
[1718407562724,0.1201691,3486.2,3484.9,2.261]
[1718407562920,2.86854,3486.1,3485.3,2.86916]
[1718407563167,2.86854,3486.1,3485.7,2.86878]
[1718407564161,2.86862,3486.0,3485.7,2.86878]
[1718407564760,2.86854,3486.1,3485.8,2.86876]
[1718407565651,2.86854,3486.1,3485.7,2.86885]
[1718407566679,2.86854,3486.1,3485.8,2.86876]
[1718407567943,2.86854,3486.1,3485.7,2.86885]
[1718407568485,2.86865,3486.0,3485.7,2.86885]
[1718407569887,2.8687,3485.9,3485.7,2.86885]
[1718407570385,0.06526464,3485.8,3485.7,2.86885]
[1718407571290,0.06526464,3485.8,3485.6,2.86893]
[1718407572864,0.1201691,3486.2,3486.1,2.86853]
[1718407573190,0.1201691,3486.2,3486.1,8.14316]
[1718407574110,0.1201691,3486.2,3486.1,11.01169]
[1718407575116,0.1201691,3486.2,3486.1,2.86853]
[1718407575272,0.1201691,3486.2,3486.1,5.73706]
[1718407575793,3.0,3488.2,3486.1,5.73706]
[1718407575794,0.04985725,3488.8,3486.3,2.4061]
[1718407576114,2.86543,3489.9,3488.8,5.27241]
[1718407576315,0.006,3488.9,3487.8,2.86709]
[1718407576543,2.87224,3488.9,3487.7,2.4061]
[1718407576814,1.75254183,3488.8,3487.1,3.0]
[1718407577023,1.75254183,3488.8,3487.0,2.4061]
[1718407577024,2.86647,3488.6,3487.9,2.86701]
[1718407577221,0.75,3488.7,3487.4,2.86741]
[1718407577531,2.86643,3488.7,3487.9,2.86705]
[1718407577751,0.75,3488.7,3487.8,2.86712]
[1718407578048,3.228782,3488.6,3487.9,2.86705]
[1718407578188,2.86658,3488.5,3487.8,2.86713]
[1718407578394,0.362232,3488.6,3488.2,2.86678]
[1718407578606,0.006,3488.9,3488.4,2.86663]
[1718407578834,3.42223,3488.9,3488.4,2.86663]
[1718407579007,0.556,3488.9,3488.4,2.86657]
[1718407579215,3.42223,3488.9,3487.8,2.86712]
[1718407579437,2.8664,3488.7,3488.1,2.86685]
[1718407579637,1.178863,3488.6,3488.2,2.8668]
[1718407580136,4.045343,3488.6,3488.2,2.8668]
[1718407580539,0.0513159,3488.5,3488.2,2.8668]
[1718407581264,0.55,3488.4,3487.4,2.86739]
[1718407581391,0.95966589,3488.4,3487.4,2.86739]
[1718407581592,2.86676,3488.3,3487.9,2.86697]
[1718407582019,1.01097407,3488.4,3487.5,2.86735]
[1718407582020,0.05131205,3488.2,3488.1,2.86689]
[1718407582245,0.006,3488.9,3488.7,2.86639]
[1718407582397,0.006,3488.9,3488.5,2.86652]
[1718407582600,0.33840068,3488.8,3488.5,2.86652]
[1718407583109,0.33840068,3488.8,3488.4,2.86664]
[1718407583313,0.33840068,3488.8,3488.5,2.86653]
[1718407584009,2.86642,3488.7,3488.3,2.86671]
[1718407584210,0.05122328,3488.6,3488.3,2.86671]
[1718407584412,0.65893521,3488.6,3488.3,2.86671]
[1718407585212,3.52542521,3488.6,3488.3,2.86671]
[1718407585420,0.65893521,3488.6,3488.4,2.86663]
[1718407585618,0.006,3488.9,3488.4,2.86663]
[1718407585806,1.43344514,3488.8,3488.4,2.86663]
[1718407586007,0.55,3488.7,3488.4,2.86663]
[1718407586206,0.55,3488.7,3488.2,2.86673]
[1718407586402,2.86648,3488.6,3488.2,2.86679]
[1718407586733,0.77163051,3488.5,3488.2,2.86679]
[1718407587235,0.05126185,3488.4,3488.2,2.86679]
[1718407588336,2.91790185,3488.4,3487.9,2.867]
[1718407588533,2.91790185,3488.4,3487.5,2.86737]
[1718407588534,2.86705,3487.9,3487.5,2.86737]
[1718407588721,2.86705,3487.9,3487.6,2.86729]
[1718407588921,3.440436,3487.9,3487.6,2.86729]
[1718407589232,0.05124642,3487.8,3487.6,2.86729]
[1718407591713,2.86746,3487.4,3486.9,2.86787]
[1718407591942,1.43344514,3487.3,3485.6,2.4701]
[1718407592245,2.86779,3487.0,3486.6,2.86804]
[1718407592664,2.86798,3486.8,3486.4,2.8682]
[1718407593564,0.05088369,3486.7,3486.4,2.8682]
[1718407594062,0.05074472,3486.6,3486.4,2.8682]
[1718407594361,2.86798,3486.8,3486.4,2.8682]
[1718407594660,2.86804,3486.7,3486.4,2.8682]
[1718407594959,0.05049379,3486.6,3486.4,2.8682]
[1718407595761,2.86797,3486.8,3486.4,2.8682]
[1718407595980,0.05033549,3486.5,3486.4,5.73648]
[1718407596137,2.86788,3486.9,3486.5,2.86816]
[1718407597450,1.98344514,3487.3,3486.0,1.617]
[1718407597451,2.8678,3487.0,3486.6,2.8681]
[1718407598054,2.8678,3487.0,3486.7,2.86801]
[1718407599431,2.8678,3487.0,3486.6,2.86811]
[1718407599743,3.63969551,3487.0,3486.6,2.86811]
[1718407600633,0.05035866,3486.9,3486.6,2.86811]
[1718407601336,0.05035866,3486.9,3486.5,2.86819]
[1718407601543,2.86763,3487.2,3486.5,2.86819]
[1718407601544,2.86763,3487.2,3486.8,2.86795]
[1718407601774,0.55,3487.1,3486.8,2.86795]
[1718407602933,3.41773,3487.1,3486.8,2.86795]
[1718407603145,4.18960251,3487.1,3486.8,2.86795]
[1718407603357,3.63960251,3487.1,3486.7,2.86802]
[1718407604202,0.75,3487.5,3486.9,2.86784]
[1718407604380,2.86733,3487.6,3487.2,2.86757]
[1718407604574,2.86733,3487.6,3486.9,2.86785]
[1718407604575,2.86755,3487.3,3486.9,2.86785]
[1718407604775,2.86764,3487.2,3486.8,2.86788]
[1718407605380,2.86774,3487.1,3486.7,2.86802]
[1718407607590,2.8678,3487.0,3486.6,2.8681]
[1718407608170,2.8678,3487.0,3486.7,2.86803]
[1718407609369,2.8678,3487.0,3486.6,2.8681]
[1718407609568,2.8678,3487.0,3486.7,2.86803]
[1718407610306,2.86788,3486.9,3486.6,2.86811]
[1718407610668,2.86802,3486.8,3486.4,2.86827]
[1718407610869,2.86805,3486.7,3486.3,2.86836]
[1718407611705,2.86805,3486.7,3486.4,2.86828]
[1718407611866,2.8683,3486.4,3485.8,2.86876]
[1718407612072,2.86838,3486.3,3486.0,2.86861]
[1718407612312,2.86838,3486.3,3485.8,2.86876]
[1718407612313,2.86845,3486.2,3485.8,2.86876]
[1718407614005,2.86853,3486.1,3485.8,2.86876]
[1718407614408,2.86853,3486.1,3485.2,6.9166]
[1718407614409,2.86861,3486.0,3485.6,2.86892]
[1718407614706,2.86861,3486.0,3485.7,2.86886]
[1718407615209,0.05009606,3485.9,3485.7,2.86886]
[1718407615508,0.05009606,3485.9,3485.6,2.86893]
[1718407615904,0.05009606,3485.9,3485.7,2.86884]
[1718407616074,2.86855,3486.1,3485.8,2.86878]
[1718407616276,0.04996473,3486.0,3485.8,2.86878]
[1718407616815,2.86846,3486.2,3485.8,2.86878]
[1718407616986,0.04996473,3485.9,3485.8,2.86878]
[1718407617318,0.04996473,3485.9,3485.2,2.2996]
[1718407617471,2.86862,3486.0,3485.6,2.86887]
[1718407617677,2.86879,3485.8,3485.4,2.8691]
[1718407617898,2.86889,3485.7,3485.4,2.8691]
[1718407618209,2.91857663,3485.7,3485.4,2.8691]
[1718407618583,2.86895,3485.6,3485.3,2.86917]
[1718407619014,0.04968663,3485.5,3485.3,2.86917]
[1718407620043,2.86887,3485.7,3485.3,2.86917]
[1718407620239,0.04968663,3485.4,3485.3,2.86917]
[1718407620419,2.86887,3485.7,3485.3,2.86917]
[1718407620602,0.04968663,3485.4,3485.3,2.86917]
[1718407620801,2.8684,3486.3,3485.2,2.86926]
[1718407621009,0.04968663,3485.4,3485.1,2.86935]
[1718407621337,0.04943933,3485.3,3485.1,2.86935]
[1718407621569,2.86927,3485.3,3484.9,2.86946]
[1718407621707,0.04943933,3485.2,3484.9,2.86946]
[1718407621909,2.86927,3485.3,3484.9,2.86946]
[1718407622207,0.04943933,3485.1,3484.7,2.86967]
[1718407622509,0.04943933,3485.0,3484.7,2.86967]
[1718407622701,2.86928,3485.2,3484.7,2.86967]
[1718407622907,0.04941227,3484.9,3484.6,2.86975]
[1718407623103,2.86951,3485.0,3484.6,2.86975]
[1718407623333,2.86951,3485.0,3484.7,2.86967]
[1718407623533,2.86936,3485.1,3484.8,2.8696]
[1718407623932,0.04934657,3485.0,3484.8,2.8696]
[1718407624946,2.86929,3485.2,3484.8,2.8696]
[1718407625153,0.04934657,3484.9,3484.8,2.8696]
[1718407625347,2.86929,3485.2,3484.8,2.8696]
[1718407625528,2.91886657,3484.9,3484.5,2.86985]
[1718407625863,2.86952,3484.9,3484.5,2.86985]
[1718407626045,0.04894081,3484.8,3484.5,2.86978]
[1718407626358,0.04894081,3484.8,3484.6,2.86974]
[1718407626571,1.617,3486.1,3485.5,2.86895]
[1718407626572,2.8686,3486.1,3485.5,2.86895]
[1718407626739,3.19800989,3486.0,3485.5,2.86895]
[1718407626938,2.86872,3485.9,3485.5,2.86895]
[1718407627268,0.32931989,3486.0,3485.7,2.86886]
[1718407628687,3.21922196,3487.1,3486.0,2.86858]
[1718407628688,2.86829,3486.4,3486.0,2.86858]
[1718407628993,2.86829,3486.4,3486.0,2.86859]
[1718407628994,4.30173514,3486.4,3486.0,2.86859]
[1718407629273,2.86837,3486.3,3486.0,2.86859]
[1718407629636,2.86837,3486.3,3485.9,2.86868]
[1718407630043,2.86846,3486.2,3485.9,2.86868]
[1718407630465,0.04916494,3486.1,3485.9,2.86868]
[1718407631584,2.86838,3486.3,3485.9,2.86868]
[1718407631780,0.04916494,3486.0,3485.9,2.86868]
[1718407631954,2.86838,3486.3,3485.9,2.86868]
[1718407632143,0.04916494,3486.0,3485.9,2.86868]
[1718407632340,2.86838,3486.3,3485.9,2.86868]
[1718407632565,0.04916494,3486.0,3485.9,2.86868]
[1718407632749,2.86838,3486.3,3485.9,2.86868]
[1718407632950,0.04916494,3486.0,3485.8,2.8687]
[1718407633174,2.86846,3486.2,3485.8,2.8687]
[1718407633473,0.04916494,3485.9,3485.8,2.8687]
[1718407633673,2.86846,3486.2,3485.8,2.8687]
[1718407634176,0.04916494,3486.1,3485.8,2.8687]
[1718407637407,2.8687,3485.9,3485.1,2.2996]
[1718407637613,1.43344514,3486.0,3485.0,2.86942]
[1718407637614,2.86902,3485.6,3485.0,2.86942]
[1718407637754,2.86911,3485.4,3485.0,2.86942]
[1718407638088,2.86911,3485.4,3484.8,2.86956]
[1718407638089,2.86928,3485.2,3484.8,2.86953]
[1718407638291,2.86921,3485.3,3484.9,2.8695]
[1718407638495,2.86921,3485.3,3484.8,2.86953]
[1718407638496,2.86921,3485.3,3485.0,2.86943]
[1718407638708,0.04959777,3485.2,3485.0,2.86943]
[1718407638933,2.86921,3485.3,3485.0,2.86943]
[1718407639185,0.0494664,3485.1,3485.0,2.86943]
[1718407639488,2.86921,3485.3,3484.8,2.86953]
[1718407639679,0.0494664,3485.1,3484.8,2.86953]
[1718407639875,2.86921,3485.3,3484.8,2.86953]
[1718407640076,0.0494664,3485.0,3484.8,2.86953]
[1718407640387,0.0494664,3485.0,3484.1,2.87011]
[1718407640388,2.86985,3484.5,3484.1,2.87011]
[1718407640691,0.0489756,3484.4,3484.1,2.87011]
[1718407640990,2.86978,3484.6,3484.1,2.87011]
[1718407641589,0.0487862,3484.5,3484.1,2.87011]
[1718407642353,2.86994,3484.4,3484.0,2.87024]
[1718407642762,0.0487862,3484.3,3484.0,2.87024]
[1718407643696,2.9188062,3484.3,3484.0,2.87024]
[1718407645301,2.9188062,3484.3,3483.9,2.87033]